[Event "Late-Titled-Tuesday-Blitz-June-18-2024"]
[Site "Chess.com"]
[Date "2024.06.18"]
[Round "4"]
[White "aexmi"]
[Black "10n0l20"]
[Result "0-1"]
[WhiteElo "2283"]
[BlackElo "2476"]
[TimeControl "180+1"]
[EndTime "14:39:19 PDT"]
[Termination "10n0l20 won by resignation"]

1. d4 {[%clk 0:03:00.9]} 1... c5 {[%clk 0:02:58.8]} 2. d5 {[%clk 0:02:57.6]}
2... g6 {[%clk 0:02:59.4]} 3. c4 {[%clk 0:02:53.6]} 3... Bg7 {[%clk 0:02:59.5]}
4. Nf3 {[%clk 0:02:48.9]} 4... f5 {[%clk 0:02:59]} 5. g3 {[%clk 0:02:44.7]} 5...
d6 {[%clk 0:02:59.1]} 6. Bg2 {[%clk 0:02:44.9]} 6... Qa5+ {[%clk 0:02:56.4]} 7.
Nbd2 {[%clk 0:02:42.8]} 7... Qa6 {[%clk 0:02:57.1]} 8. O-O {[%clk 0:02:40.1]}
8... Nd7 {[%clk 0:02:57.8]} 9. a4 {[%clk 0:02:25.8]} 9... Ngf6 {[%clk
0:02:54.7]} 10. Qc2 {[%clk 0:02:25.3]} 10... O-O {[%clk 0:02:53.8]} 11. e4
{[%clk 0:02:22.4]} 11... fxe4 {[%clk 0:02:48.6]} 12. Nxe4 {[%clk 0:02:22.4]}
12... Nxe4 {[%clk 0:02:49.2]} 13. Qxe4 {[%clk 0:02:23]} 13... Nf6 {[%clk
0:02:49.8]} 14. Qe2 {[%clk 0:02:08.4]} 14... Nxd5 {[%clk 0:02:44.9]} 15. Bg5
{[%clk 0:00:57.4]} 15... h6 {[%clk 0:02:24.1]} 16. Bd2 {[%clk 0:00:37.6]} 16...
Bg4 {[%clk 0:02:17.3]} 17. h3 {[%clk 0:00:34.3]} 17... Bxf3 {[%clk 0:02:11.8]}
18. Bxf3 {[%clk 0:00:32]} 18... Nb6 {[%clk 0:02:12.4]} 19. Qxe7 {[%clk
0:00:24.1]} 19... Rxf3 {[%clk 0:02:10.7]} 20. Qxd6 {[%clk 0:00:19.7]} 20... Kh7
{[%clk 0:02:07.7]} 21. Kg2 {[%clk 0:00:16]} 21... Rf6 {[%clk 0:02:04.6]} 22. Qe7
{[%clk 0:00:12.5]} 22... Qxc4 {[%clk 0:02:02.3]} 23. Bc3 {[%clk 0:00:12.2]}
23... Rf7 {[%clk 0:02:01.5]} 0-1

[Event "Late-Titled-Tuesday-Blitz-June-18-2024"]
[Site "Chess.com"]
[Date "2024.06.18"]
[Round "4"]
[White "noblerone"]
[Black "cthake"]
[Result "1-0"]
[WhiteElo "2532"]
[BlackElo "1840"]
[TimeControl "180+1"]
[EndTime "14:39:30 PDT"]
[Termination "noblerone won by resignation"]

1. d4 {[%clk 0:03:00.9]} 1... Nf6 {[%clk 0:02:58.7]} 2. Nf3 {[%clk 0:03:01.6]}
2... g6 {[%clk 0:02:55.5]} 3. c4 {[%clk 0:02:58.9]} 3... d5 {[%clk 0:02:54.7]}
4. Nc3 {[%clk 0:02:59.1]} 4... Bg7 {[%clk 0:02:53.8]} 5. Bg5 {[%clk 0:02:59.6]}
5... dxc4 {[%clk 0:02:51.9]} 6. e3 {[%clk 0:02:59.2]} 6... O-O {[%clk
0:02:49.8]} 7. Bxc4 {[%clk 0:02:59.5]} 7... Bg4 {[%clk 0:02:42.4]} 8. O-O {[%clk
0:02:58.8]} 8... c6 {[%clk 0:02:39.3]} 9. a4 {[%clk 0:02:57.4]} 9... Nbd7 {[%clk
0:02:38.3]} 10. h3 {[%clk 0:02:56.5]} 10... Bxf3 {[%clk 0:02:36.5]} 11. Qxf3
{[%clk 0:02:57.4]} 11... Nb6 {[%clk 0:02:36.5]} 12. Bb3 {[%clk 0:02:56.3]} 12...
Nbd5 {[%clk 0:02:32.8]} 13. a5 {[%clk 0:02:54.6]} 13... a6 {[%clk 0:02:09.7]}
14. Rfd1 {[%clk 0:02:39.5]} 14... Nxc3 {[%clk 0:02:03.7]} 15. bxc3 {[%clk
0:02:38.7]} 15... Qc7 {[%clk 0:02:02.3]} 16. Bf4 {[%clk 0:02:32]} 16... Qc8
{[%clk 0:01:54.1]} 17. e4 {[%clk 0:02:25.6]} 17... e6 {[%clk 0:01:53.8]} 18. Be5
{[%clk 0:02:11.4]} 18... Nd7 {[%clk 0:01:52.1]} 19. Bd6 {[%clk 0:02:06]} 19...
Re8 {[%clk 0:01:50.9]} 20. e5 {[%clk 0:02:05.8]} 20... Bf8 {[%clk 0:01:46.3]}
21. c4 {[%clk 0:01:55.6]} 21... Bxd6 {[%clk 0:01:43.5]} 22. exd6 {[%clk
0:01:56.5]} 22... Qd8 {[%clk 0:01:40.6]} 23. c5 {[%clk 0:01:49.6]} 23... Qf6
{[%clk 0:01:39.4]} 24. Qxf6 {[%clk 0:01:40.8]} 24... Nxf6 {[%clk 0:01:39.1]} 25.
Bc4 {[%clk 0:01:41]} 25... Nd5 {[%clk 0:01:37.2]} 26. Bxd5 {[%clk 0:01:31.6]}
26... exd5 {[%clk 0:01:36.9]} 27. Rab1 {[%clk 0:01:31.3]} 27... Rab8 {[%clk
0:01:32.7]} 28. Rb2 {[%clk 0:01:27.9]} 28... Re4 {[%clk 0:01:30.4]} 29. f3
{[%clk 0:01:19.3]} 29... Re3 {[%clk 0:01:16.7]} 30. Rdb1 {[%clk 0:01:18.4]}
30... Rd3 {[%clk 0:01:11.9]} 31. Rxb7 {[%clk 0:01:17.9]} 31... Rd8 {[%clk
0:01:11]} 32. Rb8 {[%clk 0:01:18]} 32... Rxb8 {[%clk 0:01:09]} 33. Rxb8+ {[%clk
0:01:18.9]} 33... Kg7 {[%clk 0:01:07]} 34. d7 {[%clk 0:01:19.4]} 1-0

[Event "Late-Titled-Tuesday-Blitz-June-18-2024"]
[Site "Chess.com"]
[Date "2024.06.18"]
[Round "4"]
[White "ChEsper99"]
[Black "xakevicius91"]
[Result "0-1"]
[WhiteElo "2257"]
[BlackElo "2630"]
[TimeControl "180+1"]
[EndTime "14:39:39 PDT"]
[Termination "xakevicius91 won by resignation"]

1. e4 {[%clk 0:03:00]} 1... c5 {[%clk 0:02:56.3]} 2. c3 {[%clk 0:02:51.9]} 2...
Nf6 {[%clk 0:02:55.3]} 3. e5 {[%clk 0:02:52.3]} 3... Nd5 {[%clk 0:02:55.4]} 4.
d4 {[%clk 0:02:52.9]} 4... cxd4 {[%clk 0:02:56.3]} 5. cxd4 {[%clk 0:02:53.6]}
5... d6 {[%clk 0:02:56.9]} 6. Nf3 {[%clk 0:02:50.2]} 6... e6 {[%clk 0:02:57.2]}
7. Bc4 {[%clk 0:02:49.5]} 7... Be7 {[%clk 0:02:57.6]} 8. O-O {[%clk 0:02:45.5]}
8... O-O {[%clk 0:02:57.7]} 9. Qe2 {[%clk 0:02:45.7]} 9... b6 {[%clk 0:02:57.5]}
10. Rd1 {[%clk 0:02:43.4]} 10... Bb7 {[%clk 0:02:51.9]} 11. Bxd5 {[%clk
0:02:43.4]} 11... exd5 {[%clk 0:02:51.5]} 12. Nc3 {[%clk 0:02:41.3]} 12... Na6
{[%clk 0:02:51.3]} 13. Bf4 {[%clk 0:02:40]} 13... Nc7 {[%clk 0:02:50.4]} 14.
Rac1 {[%clk 0:02:36.9]} 14... Qd7 {[%clk 0:02:47.5]} 15. exd6 {[%clk 0:02:34.3]}
15... Bxd6 {[%clk 0:02:47.2]} 16. Bxd6 {[%clk 0:02:35]} 16... Qxd6 {[%clk
0:02:46.3]} 17. Re1 {[%clk 0:02:25.9]} 17... Ne6 {[%clk 0:02:42.3]} 18. Qe5
{[%clk 0:02:11]} 18... Qb4 {[%clk 0:02:36]} 19. Nxd5 {[%clk 0:01:44.2]} 19...
Bxd5 {[%clk 0:02:36.9]} 20. Qxd5 {[%clk 0:01:45]} 20... Qxb2 {[%clk 0:02:34.5]}
21. Qb3 {[%clk 0:01:41.2]} 21... Qxb3 {[%clk 0:02:22]} 22. axb3 {[%clk
0:01:42.1]} 22... Rad8 {[%clk 0:02:21.9]} 23. Red1 {[%clk 0:01:42.4]} 23... Rd6
{[%clk 0:02:20.3]} 24. Kf1 {[%clk 0:01:01]} 24... Rfd8 {[%clk 0:02:18.5]} 25. g3
{[%clk 0:00:50.4]} 25... g6 {[%clk 0:02:18.5]} 26. Rc4 {[%clk 0:00:31.4]} 26...
Kg7 {[%clk 0:02:17.9]} 27. Ke2 {[%clk 0:00:29.8]} 27... b5 {[%clk 0:02:17.6]}
28. Rc2 {[%clk 0:00:03.4]} 28... a6 {[%clk 0:02:11.5]} 29. Ra2 {[%clk
0:00:03.2]} 29... Nc7 {[%clk 0:02:04.9]} 30. Rad2 {[%clk 0:00:02.8]} 30... Nd5
{[%clk 0:02:04.9]} 31. Ne1 {[%clk 0:00:02.3]} 31... Nc3+ {[%clk 0:02:04.8]} 0-1

[Event "Late-Titled-Tuesday-Blitz-June-18-2024"]
[Site "Chess.com"]
[Date "2024.06.18"]
[Round "4"]
[White "Inepton_Fermion"]
[Black "Arteler"]
[Result "0-1"]
[WhiteElo "2399"]
[BlackElo "2210"]
[TimeControl "180+1"]
[EndTime "14:39:40 PDT"]
[Termination "Arteler won by resignation"]

1. Nf3 {[%clk 0:03:00.9]} 1... Nf6 {[%clk 0:02:56.9]} 2. b3 {[%clk 0:03:01.2]}
2... g6 {[%clk 0:02:56.2]} 3. Bb2 {[%clk 0:03:02.1]} 3... Bg7 {[%clk 0:02:56.4]}
4. g3 {[%clk 0:03:01.6]} 4... b6 {[%clk 0:02:55.3]} 5. Bg2 {[%clk 0:03:01.6]}
5... Bb7 {[%clk 0:02:55.7]} 6. O-O {[%clk 0:03:01.9]} 6... O-O {[%clk
0:02:55.2]} 7. c4 {[%clk 0:03:02.3]} 7... c5 {[%clk 0:02:53.3]} 8. d4 {[%clk
0:03:01.4]} 8... cxd4 {[%clk 0:02:41]} 9. Qxd4 {[%clk 0:03:00.1]} 9... Nc6
{[%clk 0:02:39.9]} 10. Qd2 {[%clk 0:02:59.9]} 10... d5 {[%clk 0:02:35.3]} 11.
cxd5 {[%clk 0:02:57.8]} 11... Qxd5 {[%clk 0:02:31.8]} 12. Qc1 {[%clk 0:02:36.4]}
12... Rac8 {[%clk 0:02:28.4]} 13. Nc3 {[%clk 0:02:14.8]} 13... Qe6 {[%clk
0:02:26.8]} 14. Ng5 {[%clk 0:02:06.7]} 14... Qg4 {[%clk 0:02:09.9]} 15. Bh3
{[%clk 0:02:05.6]} 15... Qh5 {[%clk 0:02:06.9]} 16. Bxc8 {[%clk 0:02:05.5]}
16... Rxc8 {[%clk 0:02:06.5]} 17. Nf3 {[%clk 0:01:52.1]} 17... Ng4 {[%clk
0:01:55.9]} 18. Qg5 {[%clk 0:01:49.5]} 18... Qxg5 {[%clk 0:01:50.6]} 19. Nxg5
{[%clk 0:01:49.7]} 19... Nd4 {[%clk 0:01:49.3]} 20. e3 {[%clk 0:01:13.4]} 20...
Rxc3 {[%clk 0:01:43]} 21. exd4 {[%clk 0:01:12.8]} 21... Rc2 {[%clk 0:01:42.3]}
22. Ba3 {[%clk 0:01:06.7]} 22... Bxd4 {[%clk 0:01:16]} 23. Rad1 {[%clk
0:00:58.1]} 23... Nxf2 {[%clk 0:01:10.9]} 24. Rxd4 {[%clk 0:00:57.6]} 24... Nh3+
{[%clk 0:01:09.4]} 25. Nxh3 {[%clk 0:00:57.4]} 25... Rg2+ {[%clk 0:01:07.4]} 26.
Kh1 {[%clk 0:00:57.3]} 26... Rxg3+ {[%clk 0:01:05.6]} 0-1

[Event "Late-Titled-Tuesday-Blitz-June-18-2024"]
[Site "Chess.com"]
[Date "2024.06.18"]
[Round "4"]
[White "CrimeFightingSpider07"]
[Black "lluiss"]
[Result "1-0"]
[WhiteElo "2518"]
[BlackElo "2274"]
[TimeControl "180+1"]
[EndTime "14:39:47 PDT"]
[Termination "CrimeFightingSpider07 won by resignation"]

1. d4 {[%clk 0:03:00.9]} 1... Nf6 {[%clk 0:02:58.5]} 2. c4 {[%clk 0:03:01.6]}
2... g6 {[%clk 0:02:58.5]} 3. Nf3 {[%clk 0:03:01.4]} 3... Bg7 {[%clk 0:02:57.5]}
4. g3 {[%clk 0:03:01.5]} 4... O-O {[%clk 0:02:56.7]} 5. Bg2 {[%clk 0:03:02]}
5... c6 {[%clk 0:02:57.4]} 6. O-O {[%clk 0:03:02.4]} 6... d5 {[%clk 0:02:58]} 7.
Nbd2 {[%clk 0:03:01.2]} 7... Bf5 {[%clk 0:02:48.8]} 8. b3 {[%clk 0:02:49.7]}
8... Ne4 {[%clk 0:02:48.2]} 9. Bb2 {[%clk 0:02:49.7]} 9... Nxd2 {[%clk
0:02:48.1]} 10. Qxd2 {[%clk 0:02:49.5]} 10... Be4 {[%clk 0:02:47.5]} 11. Rfd1
{[%clk 0:02:49.2]} 11... Nd7 {[%clk 0:02:39.9]} 12. Ne5 {[%clk 0:02:49.1]} 12...
Bxg2 {[%clk 0:02:39]} 13. Nxd7 {[%clk 0:02:47.7]} 13... Qxd7 {[%clk 0:02:38.2]}
14. Kxg2 {[%clk 0:02:47.4]} 14... Qe6 {[%clk 0:02:34.6]} 15. Rac1 {[%clk
0:02:46.4]} 15... Rfd8 {[%clk 0:02:29]} 16. cxd5 {[%clk 0:02:46]} 16... Qxd5+
{[%clk 0:02:28.3]} 17. f3 {[%clk 0:02:46.2]} 17... f5 {[%clk 0:02:01.7]} 18. Qd3
{[%clk 0:02:44.6]} 18... e6 {[%clk 0:01:17.3]} 19. e4 {[%clk 0:02:44]} 19...
fxe4 {[%clk 0:01:17.4]} 20. fxe4 {[%clk 0:02:44.9]} 20... Qa5 {[%clk 0:01:14.2]}
21. Qc4 {[%clk 0:02:44.6]} 21... Re8 {[%clk 0:01:08.5]} 22. a4 {[%clk
0:02:43.6]} 22... Rad8 {[%clk 0:01:06.2]} 23. Bc3 {[%clk 0:02:43.2]} 23... Qb6
{[%clk 0:01:05.5]} 24. d5 {[%clk 0:02:40.9]} 24... exd5 {[%clk 0:01:03.8]} 25.
exd5 {[%clk 0:02:40.9]} 25... cxd5 {[%clk 0:00:51.5]} 26. Rxd5 {[%clk
0:02:40.6]} 26... Re2+ {[%clk 0:00:45.1]} 27. Qxe2 {[%clk 0:02:40]} 27... Rxd5
{[%clk 0:00:44.5]} 28. Bxg7 {[%clk 0:02:40.3]} 28... Kxg7 {[%clk 0:00:43.4]} 29.
Qe7+ {[%clk 0:02:39.5]} 29... Kh6 {[%clk 0:00:37.5]} 30. Qf8+ {[%clk 0:01:43.5]}
30... Kg5 {[%clk 0:00:32.5]} 31. Qf4+ {[%clk 0:01:42.5]} 1-0

[Event "Late-Titled-Tuesday-Blitz-June-18-2024"]
[Site "Chess.com"]
[Date "2024.06.18"]
[Round "4"]
[White "PNEPaul"]
[Black "AsaHoffmann"]
[Result "0-1"]
[WhiteElo "1977"]
[BlackElo "2350"]
[TimeControl "180+1"]
[EndTime "14:39:51 PDT"]
[Termination "AsaHoffmann won by resignation"]

1. e4 {[%clk 0:02:54.9]} 1... d6 {[%clk 0:02:59.3]} 2. Nc3 {[%clk 0:02:53.7]}
2... c6 {[%clk 0:02:58.3]} 3. g3 {[%clk 0:02:53.6]} 3... g6 {[%clk 0:02:56.7]}
4. Bg2 {[%clk 0:02:53.8]} 4... Bg7 {[%clk 0:02:54.7]} 5. Nge2 {[%clk 0:02:54.3]}
5... Nf6 {[%clk 0:02:45.8]} 6. h3 {[%clk 0:02:54]} 6... O-O {[%clk 0:02:45.5]}
7. O-O {[%clk 0:02:53.9]} 7... e5 {[%clk 0:02:45.3]} 8. d3 {[%clk 0:02:53.5]}
8... Be6 {[%clk 0:02:43.7]} 9. Be3 {[%clk 0:02:49.5]} 9... Qd7 {[%clk
0:02:43.5]} 10. Kh2 {[%clk 0:02:48.5]} 10... d5 {[%clk 0:02:41.7]} 11. Bd2
{[%clk 0:02:36.4]} 11... d4 {[%clk 0:02:28.6]} 12. Nb1 {[%clk 0:02:35.6]} 12...
c5 {[%clk 0:02:28]} 13. f4 {[%clk 0:02:35.4]} 13... Nc6 {[%clk 0:02:27.8]} 14.
g4 {[%clk 0:02:30.5]} 14... exf4 {[%clk 0:02:26.5]} 15. Nxf4 {[%clk 0:02:28.2]}
15... Ne5 {[%clk 0:02:21.4]} 16. Nxe6 {[%clk 0:02:27]} 16... fxe6 {[%clk
0:02:17]} 17. Bf4 {[%clk 0:02:16.1]} 17... Nc6 {[%clk 0:02:09.6]} 18. Qd2 {[%clk
0:02:11.2]} 18... Rf7 {[%clk 0:02:09.3]} 19. Na3 {[%clk 0:02:09.1]} 19... Raf8
{[%clk 0:02:08.8]} 20. Bh6 {[%clk 0:01:59.1]} 20... Qd6+ {[%clk 0:02:05.4]} 21.
Kg1 {[%clk 0:01:51.2]} 21... e5 {[%clk 0:01:57.9]} 22. Bxg7 {[%clk 0:01:49.4]}
22... Kxg7 {[%clk 0:01:57]} 23. Nc4 {[%clk 0:01:46.7]} 23... Qe6 {[%clk
0:01:55.3]} 24. Qe2 {[%clk 0:01:41.4]} 24... b5 {[%clk 0:01:53.8]} 25. Nd2
{[%clk 0:01:40.9]} 25... h6 {[%clk 0:01:51.6]} 26. Rae1 {[%clk 0:01:30.2]} 26...
Nh7 {[%clk 0:01:50.6]} 27. Rxf7+ {[%clk 0:01:28.2]} 27... Rxf7 {[%clk
0:01:47.6]} 28. Nf3 {[%clk 0:01:21.1]} 28... Qxa2 {[%clk 0:01:45.5]} 29. b3
{[%clk 0:01:19.5]} 29... Qb2 {[%clk 0:01:43.6]} 30. Rf1 {[%clk 0:00:37.8]} 30...
a5 {[%clk 0:01:35.4]} 31. Rf2 {[%clk 0:00:36.6]} 31... a4 {[%clk 0:01:34.5]} 32.
Kh2 {[%clk 0:00:34]} 32... a3 {[%clk 0:01:33.9]} 33. Qd1 {[%clk 0:00:30.1]}
33... a2 {[%clk 0:01:33.2]} 34. Rf1 {[%clk 0:00:30.1]} 34... Nb4 {[%clk
0:01:32.9]} 0-1

[Event "Late-Titled-Tuesday-Blitz-June-18-2024"]
[Site "Chess.com"]
[Date "2024.06.18"]
[Round "4"]
[White "manitodeplomo"]
[Black "guillembaches"]
[Result "1/2-1/2"]
[WhiteElo "2672"]
[BlackElo "2527"]
[TimeControl "180+1"]
[EndTime "14:39:55 PDT"]
[Termination "Game drawn by repetition"]

1. d4 {[%clk 0:03:00.9]} 1... Nf6 {[%clk 0:02:59.4]} 2. c4 {[%clk 0:03:00.3]}
2... e6 {[%clk 0:03:00]} 3. Nf3 {[%clk 0:02:59.5]} 3... d5 {[%clk 0:02:59.5]} 4.
Nc3 {[%clk 0:02:58.9]} 4... a6 {[%clk 0:02:59.7]} 5. cxd5 {[%clk 0:02:53.3]}
5... exd5 {[%clk 0:03:00.6]} 6. Bg5 {[%clk 0:02:53.2]} 6... Be6 {[%clk
0:03:00.6]} 7. e3 {[%clk 0:02:46.5]} 7... Nbd7 {[%clk 0:03:00.7]} 8. Be2 {[%clk
0:02:46.2]} 8... Bd6 {[%clk 0:03:00.4]} 9. O-O {[%clk 0:02:45.7]} 9... c6 {[%clk
0:03:00.6]} 10. Bh4 {[%clk 0:02:45.1]} 10... Qc7 {[%clk 0:03:00.6]} 11. Bg3
{[%clk 0:02:45.5]} 11... Bxg3 {[%clk 0:03:00]} 12. hxg3 {[%clk 0:02:46.4]} 12...
O-O {[%clk 0:02:52.6]} 13. Rc1 {[%clk 0:02:45.3]} 13... Rfe8 {[%clk 0:02:51.2]}
14. a3 {[%clk 0:02:42.2]} 14... a5 {[%clk 0:02:49.2]} 15. Qb3 {[%clk 0:02:35.8]}
15... Ne4 {[%clk 0:02:43.9]} 16. Qc2 {[%clk 0:02:18.6]} 16... Bf5 {[%clk
0:02:31.3]} 17. Bd3 {[%clk 0:02:16.3]} 17... Ndf6 {[%clk 0:02:24.7]} 18. Ne5
{[%clk 0:02:09.3]} 18... Qd6 {[%clk 0:02:07]} 19. Na4 {[%clk 0:01:48.6]} 19...
Nd7 {[%clk 0:01:45.9]} 20. f3 {[%clk 0:01:37.4]} 20... Nxe5 {[%clk 0:01:34.5]}
21. dxe5 {[%clk 0:01:36.3]} 21... Rxe5 {[%clk 0:01:34.4]} 22. fxe4 {[%clk
0:01:35.9]} 22... Bxe4 {[%clk 0:01:34.7]} 23. Bxe4 {[%clk 0:01:34.8]} 23... Rxe4
{[%clk 0:01:34.2]} 24. Nc5 {[%clk 0:01:11.4]} 24... Rxe3 {[%clk 0:01:23.4]} 25.
Nxb7 {[%clk 0:01:10.6]} 25... Qxg3 {[%clk 0:01:13]} 26. Qxc6 {[%clk 0:01:09]}
26... Re2 {[%clk 0:01:02]} 27. Qxd5 {[%clk 0:01:00.5]} 27... Qe3+ {[%clk
0:01:01.7]} 28. Kh1 {[%clk 0:00:59.3]} 28... Qh6+ {[%clk 0:00:56.6]} 29. Kg1
{[%clk 0:00:59.2]} 29... Qe3+ {[%clk 0:00:56.6]} 30. Kh1 {[%clk 0:00:56.9]}
30... Qh6+ {[%clk 0:00:56.4]} 31. Kg1 {[%clk 0:00:56.9]} 31... Qe3+ {[%clk
0:00:54.6]} 1/2-1/2

[Event "Late-Titled-Tuesday-Blitz-June-18-2024"]
[Site "Chess.com"]
[Date "2024.06.18"]
[Round "4"]
[White "ElCoachRene"]
[Black "Redzishchess"]
[Result "0-1"]
[WhiteElo "2093"]
[BlackElo "2450"]
[TimeControl "180+1"]
[EndTime "14:39:58 PDT"]
[Termination "Redzishchess won by resignation"]

1. Nf3 {[%clk 0:02:53]} 1... b6 {[%clk 0:02:59.7]} 2. d4 {[%clk 0:02:49.9]} 2...
Bb7 {[%clk 0:03:00]} 3. Bf4 {[%clk 0:02:50.4]} 3... Nf6 {[%clk 0:02:59]} 4. e3
{[%clk 0:02:50.3]} 4... e6 {[%clk 0:02:56.7]} 5. Nbd2 {[%clk 0:02:50]} 5... c5
{[%clk 0:02:56]} 6. c3 {[%clk 0:02:46.9]} 6... Be7 {[%clk 0:02:51.7]} 7. h3
{[%clk 0:02:42]} 7... O-O {[%clk 0:02:51.6]} 8. Bd3 {[%clk 0:02:40.5]} 8... Nc6
{[%clk 0:02:44.4]} 9. Qe2 {[%clk 0:02:39.6]} 9... d6 {[%clk 0:02:32.2]} 10. O-O
{[%clk 0:02:35.9]} 10... Qc7 {[%clk 0:02:06.8]} 11. Ba6 {[%clk 0:02:33.3]} 11...
Rad8 {[%clk 0:01:57.3]} 12. dxc5 {[%clk 0:02:30.3]} 12... bxc5 {[%clk
0:01:56.3]} 13. Rfd1 {[%clk 0:02:28.4]} 13... e5 {[%clk 0:01:56.1]} 14. Bg5
{[%clk 0:02:24.6]} 14... d5 {[%clk 0:01:46.5]} 15. Bxb7 {[%clk 0:02:12.5]} 15...
Qxb7 {[%clk 0:01:47.4]} 16. Rab1 {[%clk 0:02:10.2]} 16... e4 {[%clk 0:01:45.5]}
17. Nh2 {[%clk 0:02:05.8]} 17... h6 {[%clk 0:01:44.9]} 18. Bh4 {[%clk
0:01:56.9]} 18... Ne5 {[%clk 0:01:40.9]} 19. Bg3 {[%clk 0:01:54.9]} 19... Nd3
{[%clk 0:01:39]} 20. c4 {[%clk 0:01:47.5]} 20... Qa6 {[%clk 0:01:27.5]} 21. cxd5
{[%clk 0:01:41.2]} 21... Rxd5 {[%clk 0:01:28.4]} 22. Nb3 {[%clk 0:01:16.8]}
22... Qxa2 {[%clk 0:01:22.4]} 23. Qc2 {[%clk 0:01:15.2]} 23... Qa6 {[%clk
0:00:49]} 24. Ra1 {[%clk 0:01:08.3]} 24... Qb6 {[%clk 0:00:47.8]} 25. Ra2 {[%clk
0:01:00.8]} 25... Rfd8 {[%clk 0:00:47.3]} 26. Rda1 {[%clk 0:00:57.5]} 26... Nb4
{[%clk 0:00:46.7]} 0-1

[Event "Late-Titled-Tuesday-Blitz-June-18-2024"]
[Site "Chess.com"]
[Date "2024.06.18"]
[Round "4"]
[White "Dhaydon19"]
[Black "Levanzovsky"]
[Result "1-0"]
[WhiteElo "2646"]
[BlackElo "2406"]
[TimeControl "180+1"]
[EndTime "14:39:59 PDT"]
[Termination "Dhaydon19 won by resignation"]

1. e4 {[%clk 0:03:00.9]} 1... e5 {[%clk 0:02:59.2]} 2. Nf3 {[%clk 0:02:57.2]}
2... Nc6 {[%clk 0:02:57.5]} 3. Bb5 {[%clk 0:02:43.8]} 3... a6 {[%clk 0:02:56.5]}
4. Ba4 {[%clk 0:02:38.6]} 4... Nf6 {[%clk 0:02:56.7]} 5. d3 {[%clk 0:02:38]}
5... b5 {[%clk 0:02:55]} 6. Bb3 {[%clk 0:02:37.4]} 6... Be7 {[%clk 0:02:55.9]}
7. c3 {[%clk 0:02:36.3]} 7... d6 {[%clk 0:02:56.8]} 8. h3 {[%clk 0:02:35.6]}
8... O-O {[%clk 0:02:57.7]} 9. O-O {[%clk 0:02:35]} 9... Na5 {[%clk 0:02:57.9]}
10. Bc2 {[%clk 0:02:34.7]} 10... c5 {[%clk 0:02:58.8]} 11. d4 {[%clk 0:02:32.8]}
11... Nc6 {[%clk 0:02:58.4]} 12. Re1 {[%clk 0:02:31.6]} 12... Re8 {[%clk
0:02:55.7]} 13. a4 {[%clk 0:02:29]} 13... Bb7 {[%clk 0:02:51.5]} 14. axb5 {[%clk
0:02:28.1]} 14... axb5 {[%clk 0:02:51.1]} 15. Rxa8 {[%clk 0:02:28.7]} 15... Qxa8
{[%clk 0:02:50.5]} 16. Na3 {[%clk 0:02:29.2]} 16... b4 {[%clk 0:02:49.7]} 17.
Nb5 {[%clk 0:02:22.9]} 17... Qa5 {[%clk 0:02:46.1]} 18. dxe5 {[%clk 0:02:16.7]}
18... Nxe5 {[%clk 0:02:28.8]} 19. Nxd6 {[%clk 0:02:10.6]} 19... Rd8 {[%clk
0:02:23.6]} 20. Nxe5 {[%clk 0:01:46.1]} 20... Bxd6 {[%clk 0:02:23.6]} 21. Nc4
{[%clk 0:01:46.1]} 21... Bh2+ {[%clk 0:02:20.2]} 22. Kxh2 {[%clk 0:01:43.6]}
22... Rxd1 {[%clk 0:02:20.4]} 23. Rxd1 {[%clk 0:01:38.3]} 23... Qc7+ {[%clk
0:02:19.4]} 24. e5 {[%clk 0:01:37.2]} 24... Nd5 {[%clk 0:02:10.3]} 25. Be4
{[%clk 0:01:30.1]} 25... Nb6 {[%clk 0:01:54.3]} 26. Bxb7 {[%clk 0:01:28.6]}
26... Nxc4 {[%clk 0:01:53.8]} 27. f4 {[%clk 0:01:24.9]} 27... g5 {[%clk
0:01:47.6]} 28. Bd5 {[%clk 0:01:23]} 28... Nb6 {[%clk 0:01:45.1]} 29. c4 {[%clk
0:01:19.5]} 29... b3 {[%clk 0:01:33.7]} 30. Rd3 {[%clk 0:01:14.5]} 30... Nxd5
{[%clk 0:01:31.7]} 31. cxd5 {[%clk 0:01:14.3]} 31... c4 {[%clk 0:01:32.6]} 32.
Rg3 {[%clk 0:01:13.9]} 32... h6 {[%clk 0:01:29.4]} 33. d6 {[%clk 0:01:12]} 33...
Qc5 {[%clk 0:01:26]} 34. fxg5 {[%clk 0:01:11.9]} 34... Qxe5 {[%clk 0:01:25.1]}
35. gxh6+ {[%clk 0:01:10.4]} 35... Kh7 {[%clk 0:01:21.4]} 36. d7 {[%clk
0:01:04.6]} 36... Qd6 {[%clk 0:01:20.6]} 37. Bf4 {[%clk 0:01:01.5]} 37... Qxd7
{[%clk 0:01:13.3]} 38. Rg7+ {[%clk 0:01:00.7]} 38... Kh8 {[%clk 0:01:13.7]} 39.
Be5 {[%clk 0:01:01.3]} 39... f6 {[%clk 0:01:12.2]} 40. Rxd7 {[%clk 0:00:59.8]}
40... fxe5 {[%clk 0:01:12.1]} 41. Rc7 {[%clk 0:00:58.8]} 41... c3 {[%clk
0:01:13]} 1-0